Cogmind - Beta 16 @@@ ROGUE MODE // 2025.12.26 @ 07:20:57 Player: Moose Result: Self-destructed Performance ------------- Evolutions (1) 500 Regions Visited (2) 400 Robots Destroyed (7) 35 Value Destroyed (216) 216 Prototype IDs (0) 0 Alien Tech Used (0) 0 Bonus (0) 0 TOTAL SCORE: 1151 Bonus ------- None Cogmind --------- Core Integrity 370/400 Matter 1/300 Energy 250/250 System Corruption 0% Temperature Cool (29) Movement Treading (160) Location -9/Materials Parts ------- > --- POWER (1) -------- Ion Engine > --- PROPULSION (4) --- Light Treads Light Treads Aluminum Leg Aluminum Leg > --- UTILITY (2) ------ Large Storage Unit Improved Terrain Scanner > --- WEAPON (2) ------- Light Cannon > --- INVENTORY (15) --- Ion Engine Ion Engine Ion Engine Light Ion Engine Aluminum Leg Small Storage Unit Large Matter Pod (0) Terrain Scan Processor EM Pulse Gun Small Laser Particle Gun Light Assault Rifle Mini Grenade Launcher Mini Grenade Launcher Peak State ------------ > --- POWER ------------ Ion Engine > --- PROPULSION ------- Light Treads Light Treads Aluminum Leg Aluminum Leg > --- UTILITY ---------- Large Storage Unit Improved Terrain Scanner > --- WEAPON ----------- Grenade Launcher Mini Grenade Launcher > --- INVENTORY -------- Ion Engine Light Ion Engine Aluminum Leg Small Storage Unit Large Matter Pod Terrain Scan Processor EM Pulse Gun Small Laser Light Assault Rifle Light Cannon Mini Grenade Launcher [Rating: 13] Favorites ----------- Power Ion Engine Engine Ion Engine Propulsion Light Treads Treads Light Treads Leg Aluminum Leg Utility Improved Terrain Scanner Device Improved Terrain Scanner Storage Large Storage Unit Weapon Mini Grenade Launcher Energy Gun Small Laser Ballistic Gun Light Assault Rifle Ballistic Cannon Light Cannon Launcher Mini Grenade Launcher Build | -11 -10 -9 ------- Run | Yrd Mat Mat Slots Evolved 2 | . . 2 Power . | . . . Propulsion 2 | . . 2 Utility . | . . . Weapon . | . . . Parts Attached 14 | 7 4 3 Power 1 | 1 . . Engine 1 | 1 . . Core . | . . . Reactor . | . . . Propulsion 4 | 2 . 2 Treads 2 | 2 . . Leg 2 | . . 2 Wheel . | . . . Hover . | . . . Flight . | . . . Utility 3 | 2 1 . Device 1 | 1 . . Storage 2 | 1 1 . Processor . | . . . Hackware . | . . . Protection . | . . . Artifact . | . . . Weapon 6 | 2 3 1 Energy Gun 1 | 1 . . Energy Cannon . | . . . Ballistic Gun 1 | 1 . . Ballistic Cannon 1 | . . 1 Launcher 3 | . 3 . Special Weapon . | . . . Impact Weapon . | . . . Slashing Weapon . | . . . Piercing Weapon . | . . . Special Melee Weapon . | . . . Unidentified Prototypes . | . . . Parts Lost 1 | . . 1 Power . | . . . Propulsion . | . . . Utility . | . . . Weapon 1 | . . 1 Highest Loss Streak 1 | . . 1 To Critical Strikes . | . . . Average Backups 9 | 3 10 12 Power 2 | 1 2 2 Propulsion 1 | 1 2 1 Utility 1 | . 1 3 Weapon 3 | 1 3 5 Tool/Special . | . . . Unused Backups 10 | . 1 9 Power 4 | . . 4 Propulsion 2 | . 1 1 Utility 2 | . . 2 Weapon 2 | . . 2 Tool/Special . | . . . Average Slot Usage (%) 99 | . 100 99 Engine 13 | . 14 11 Treads 26 | . 28 22 Leg 7 | . . 21 Device 13 | . 14 11 Storage 13 | . 14 11 Launcher 23 | . 26 19 Peak Build Rating 13 | 9 12 13 Average Rating 10 | 5 10 12 On Entrance 6 | . 9 11 Avg Prop Armor Cover (%) 10 | . . 10 Naked Turns . | . . . Heaviest Build 32 | 13 30 32 Greatest Support 40 | 40 40 40 Greatest Overweight (x) . | . . . Average Overweight (x) . | . . . Largest Inventory Capacity 15 | 8 15 15 Average Capacity 13 | 7 13 15 Most Carried 14 | 6 13 14 Average Carried 9 | 3 10 12 Final Capacity 15 | 8 15 15 Final Carried 14 | 5 13 14 Class Distribution -------------------- 100% | Mutant Dominant Class ---------------- Mutant | -10/Materials Mutant | -9/Materials Resources | -11 -10 -9 ----------- Run | Yrd Mat Mat Matter Collected 156 | 132 7 17 Remotely . | . . . Salvage Created 148 | 11 30 107 Parts 10 | 4 3 3 Haulers Intercepted . | . . . Recyclers Shooed . | . . . Parts Field Recycled . | . . . Retrieved Matter . | . . . Parts Self-Destructed . | . . . Prevented . | . . . Parts Restored . | . . . Kills | -11 -10 -9 ------- Run | Yrd Mat Mat Combat Hostiles Destroyed 5 | . 1 4 AOE 5 | . 1 4 Classes Destroyed 3 | 1 2 . Tunneler 1 | 1 . . Watcher 1 | . 1 . Grunt 5 | . 1 4 Best Kill Streak 4 | 1 1 4 Combat Bots Only 4 | . 1 4 Max Kills in Single Turn 3 | 1 1 3 Gunslinging . | . . . Exploded 3 | . 1 3 Melee . | . . . Uniques/NPCs Destroyed . | . . . Combat | -11 -10 -9 -------- Run | Yrd Mat Mat Hostile Shots Fired 38 | . 1 37 Missed 12 | . . 12 Hits 26 | . 1 25 Projectile 26 | . 1 25 Critical Strikes 1 | . . 1 Damage Taken 415 | . 68 347 Core 41 | . 11 30 Absorbed by Shields . | . . . Core Remaining (%) 97 | 100 95 . Volleys Fired 14 | 2 2 10 Largest 2 | 2 2 2 Hottest 60 | 60 60 60 Shots Fired 22 | 4 4 14 Gun 4 | 4 . . Cannon 6 | . . 6 Launcher 12 | . 4 8 Special . | . . . Kinetic 8 | 2 . 6 Thermal 2 | 2 . . Explosive 12 | . 4 8 Electromagnetic . | . . . Robot Hit Streak 11 | 4 6 11 Robot Miss Streak 1 | . . 1 Penetration Max . | . . . Secondary Targets . | . . . Shots Hit Robots 13 | 4 2 7 Core Hits 16 | 2 4 10 Critical Kills . | . . . Critical Parts Destroyed . | . . . Critical Strikes . | . . . Melee Attacks . | . . . Impact . | . . . Slashing . | . . . Piercing . | . . . Sneak Attacks . | . . . Combat Hostiles . | . . . Follow-up Attacks . | . . . Damage Inflicted 467 | 41 66 360 Guns 38 | 38 . . Cannons 68 | . . 68 Explosions 343 | . 59 284 Melee . | . . . Ramming 18 | 3 7 8 Kinetic 84 | 16 . 68 Thermal 22 | 22 . . Explosive 343 | . 59 284 Electromagnetic . | . . . Impact . | . . . Slashing . | . . . Piercing . | . . . Highest Corruption . | . . . Average Corruption . | . . . Corruption Purged . | . . . Corruption Blocked . | . . . Overload Shots . | . . . Overflow Damage . | . . . Projectiles . | . . . Explosions . | . . . Melee . | . . . Knockbacks 1 | . . 1 Impact 1 | . . 1 Kinetic . | . . . Secondary . | . . . Self-Inflicted Damage 35 | . . 35 Shots 2 | . . 2 Rammed 7 | 2 2 3 Targets Rammed 7 | 2 2 3 Kicked . | . . . Crushed . | . . . Highest Temperature 25 | 20 6 25 Average Temperature 11 | 15 6 10 Received Heat Transfer 204 | . 6 198 Siege Activations . | . . . Martial Activations . | . . . Shielding Activations . | . . . Robots Disrupted . | . . . Combat Hostiles . | . . . Robots Corrupted . | . . . Combat Hostiles . | . . . Parts Fried . | . . . Impact Corruptions . | . . . Robots Melted . | . . . Combat Hostiles . | . . . Parts Melted . | . . . Heat Transferred 50 | 50 . . Parts Sabotaged . | . . . Parts Stolen . | . . . Parts Stripped . | . . . Power Chain Reactions . | . . . Alert | -11 -10 -9 ------- Run | Yrd Mat Mat Maximum Alert Level . | . . . Low Security (%) 100 | 100 100 100 Level 1 . | . . . Level 2 . | . . . Level 3 . | . . . Level 4 . | . . . Level 5 . | . . . High Security . | . . . Max Security . | . . . Peak Influence 117 | 5 42 117 Initial 13 | . . 13 Average 18 | . 7 51 Influence Increases 204 | 5 82 117 Destroy 0b10 Robot/C 100 | . 20 80 Destroy 0b10 Robot/NC 10 | 5 5 . Destroy Leader 22 | . 12 10 Disable Machine 15 | . 15 . Destroy Structure 57 | . 30 27 Influence Decreases 137 | 5 50 82 Entered New Map 19 | . . 19 Time Decay 108 | 5 50 53 Lost Part 10 | . . 10 Squads Dispatched 1 | . 1 . Investigation . | . . . Extermination . | . . . Reinforcement 1 | . 1 . Assault . | . . . Garrison . | . . . Intercept . | . . . Searches Triggered . | . . . Construction Impeded . | . . . Haulers Reinforced . | . . . Active Scanning Responses . | . . . Cargo Convoy Interrupts . | . . . Stealth | -11 -10 -9 --------- Run | Yrd Mat Mat Distress Signals 1 | . . 1 Communications Jammed . | . . . Distress Signals . | . . . Times Spotted 11 | . 3 8 Peak Tracking Total 5 | . 1 5 Tactical Retreats . | . . . Traps | -11 -10 -9 ------- Run | Yrd Mat Mat Traps Triggered 2 | . 2 . Indirectly . | . . . Trap Hack Attempts . | . . . Triggered . | . . . Disarmed . | . . . Reprogrammed . | . . . Reused . | . . . Traps Extracted . | . . . Installed . | . . . Triggered . | . . . Machines | -11 -10 -9 ---------- Run | Yrd Mat Mat Machines Disabled 1 | . 1 . Max in Single Turn 1 | . 1 . Machines Repaired . | . . . Machines Dismantled . | . . . Machines Sabotaged . | . . . Overloaded Fab Kills . | . . . Hacking | -11 -10 -9 --------- Run | Yrd Mat Mat Machines Accessed . | . . . Terminals . | . . . Fabricators . | . . . Repair Stations . | . . . Recycling Units . | . . . Scanalyzers . | . . . Garrison Access . | . . . Total Hacks . | . . . Successful . | . . . Failed . | . . . Catastrophic . | . . . Database Lockouts . | . . . Manual . | . . . Terminals . | . . . Fabricators . | . . . Repair Stations . | . . . Recycling Units . | . . . Scanalyzers . | . . . Garrison Access . | . . . Terminal Hacks . | . . . Fabricator Hacks . | . . . Repair Station Hacks . | . . . Recycling Unit Hacks . | . . . Scanalyzer . | . . . Garrison Access Hacks . | . . . Unauthorized Hacks . | . . . Terminals . | . . . Fabricators . | . . . Repair Stations . | . . . Recycling Units . | . . . Scanalyzers . | . . . Garrison Access . | . . . Data Cores Recovered . | . . . Used . | . . . Hacking Detections . | . . . Full Trace Events . | . . . Feedback Events . | . . . Feedback Blocked . | . . . Robot Schematics Acquired . | . . . Robots Built . | . . . Authchips . | . . . Time . | . . . Total Robot Build Rating . | . . . Part Schematics Acquired . | . . . Parts Built . | . . . Authchips . | . . . Time . | . . . Total Part Build Rating . | . . . Part Studies Acquired . | . . . Parts Repaired . | . . . Time . | . . . Parts Recycled . | . . . Recycled Matter . | . . . Retrieved Matter . | . . . Retrieved Components . | . . . Parts Scanalyzed . | . . . Part Schematics Acquired . | . . . Parts Damaged . | . . . Bothacking | -11 -10 -9 ------------ Run | Yrd Mat Mat Used RIF Installer . | . . . Robots Hacked . | . . . Non-combat . | . . . Combat . | . . . Robot Hacks Applied . | . . . Relay Couplers Released . | . . . Fabnet Peak Effective % . | . . . Robots Rewired . | . . . Allies Hacked . | . . . Hacks Repelled . | . . . Allies | -11 -10 -9 -------- Run | Yrd Mat Mat Total Allies . | . . . Largest Group . | . . . Highest-Rated Group . | . . . Highest-Rated Ally . | . . . Total Orders . | . . . Ally Attacks . | . . . Total Damage . | . . . Kills . | . . . Allies Corrupted . | . . . Allies Melted . | . . . Intel | -11 -10 -9 ------- Run | Yrd Mat Mat Active Infowar (turns) 477 | 12 308 157 Terrain 477 | 12 308 157 Robot Analysis Total . | . . . Derelict Logs Recovered . | . . . Drone Launches . | . . . Drone Recoveries . | . . . Exploration | -11 -10 -9 ------------- Run | Yrd Mat Mat Turns Passed 566 | 101 308 157 Spaces Moved 309 | 55 178 76 Core 12 | 12 . . Treads 297 | 43 178 76 Legs . | . . . Wheels . | . . . Hover . | . . . Flight . | . . . Fastest Speed 50 | 50 160 160 Average Speed 155 | 136 160 160 Slowest Speed 160 | 160 160 160 Overloaded Moves . | . . . Propulsion Burnouts . | . . . Robots Hopped . | . . . Potential Cave-ins . | . . . Cave-ins Triggered . | . . . Exploration Rate (%) 13 | 3 27 10 Regions Visited 2 Branch Regions . Pre-discovered Areas . | . . . Known Exits Taken . | . . . Unknown Exits Taken 2 | 1 1 . Scrap Searched . | . . . Spaces Dug . | . . . Terrain Destroyed 69 | . 35 34 Melee . | . . . Projectile . | . . . AOE 69 | . 35 34 Terrain Rammed . | . . . Walls Destroyed . | . . . Machines Disabled . | . . . Actions | -11 -10 -9 --------- Run | Yrd Mat Mat Total 367 | 77 195 95 Wait . | . . . Move 308 | 55 177 76 Hop . | . . . Pick Up 24 | 12 9 3 Fast Attach . | . . . Attach 9 | 7 . 2 Detach . | . . . Swap 5 | . 4 1 Drop 1 | . 1 . Fire 14 | 2 2 10 Melee . | . . . Ram . | . . . Kick . | . . . Crush 6 | 1 2 3 Escape Stasis . | . . . Rewire . | . . . Trap . | . . . Miscellaneous . | . . . Route ------- -11/Scrapyard -10/Materials -9/Materials (discovered 1 exit: [*Min]) History --------- Turn | Location | Event 20 | -11/Scrapyard | Discovered new exit (range 16) 102 | -11/Scrapyard | Entered Materials 273 | -10/Materials | Discovered new exit (range 15) 307 | -10/Materials | Build established: Mutant 410 | -10/Materials | Entered another Materials area 410 | -9/Materials | Evolved 2 slots: Propulsion x2 436 | -9/Materials | Discovered new exit (range 16) 567 | -9/Materials | Self-destructed Last Messages --------------- U-05 Engineer lays Concrete. The unstable cave ceiling collapses. U-05 Engineer lays Concrete. Acquired Particle Gun. U-05 Engineer builds a Wall. Acquired 17 matter. Acquired Ion Engine. U-05 Engineer lays Concrete. U-05 Engineer builds a Wall. K-01 Serf collects debris. U-05 Engineer lays Concrete. U-05 Engineer builds a Door. Slammed into G-34 Mercenary. G-34 Mercenary knocked back. Slammed into G-34 Mercenary. U-05 Engineer lays Concrete. Critical hit (Burn: +37). U-05 Engineer lays Concrete. Grenade Launcher destroyed. U-05 Engineer lays Concrete. Map ----- +----------------------------------------------------+ | | | ?????????????????????????????????????????????????? | | ?????????????????????#???????????????????????????? | | ????########??????#??????????????????????????????? | | ??# #?????????????????????????????????????? | | ??# """ #????#???#????????????????????????????? | | ??# """ #???########??#???????????????????????? | | ??# """ #???# #??????????????????????????? | | ??# #???# #???????########???????????? | | ??# """ #???# """ #?????? #???????????? | | ??# """ #???# """ #?????? #?#?????????? | | ??# """ #???# """ ####### #???????????? | | ### #??#?? ### #???????????? | | ?######+########### #???????????? | | ## #???????????? | | ?# u #???????????? | | ?# # #???????????? | | ?################## #???????????? | | ?????????#???#????# # ## #####?????#?????? | | ????????#?????#??#### # # ##???#??????????? | | ????????????????????#### ######### #?????????? | | ?????#???#??????? ?????# ????????? | | ?????? ????????????????# % % ##??? ???????????? | | ???????????????? ?????#= ###??????????????? | | ?????? ?? ?????????? ??# ""#??????????????? | | ?????? ?????? ? ??????# @ """ Y"#????????#?????? | | ???????????#????????? ?#g """ ""#??????????????? | | ????????????#? ???? ???# g""" ###??????????????? | | ????????????? ????? ???# g #????????????????? | | ???????????????????????#] % #??????????????? | | ???????????????????????# +??????????????? | | ????????????????????? w # ?? ??????????? | | ????????????????????#### ## ##?????T"???????? | | ???????????????????????# #?/#???????????????? | | ???????????????????????#! !#?? ???????????????? | | ???????????????????????##!!!!##??????????????????? | | ????????????????????????######??? ???????????????? | | ?????????????????????????????????????????????????? | | ?????????????????????????????????????????????????? | | ?????????????????????????????????????????????????? | | ?????????????????????????????????????????????????? | | ????????????????? ???????#???????????????????????? | | ?????????????????????????????????????????????????? | | ?????????????????????????????????????????????????? | | ?????????????????????????????????????????????????? | | ?????????????????????????????????????????????????? | | ?????????????????????????????????????????????????? | | ?????????????????????????????????????????????????? | | ?????????????????????????????????????????????????? | | ?????????????????????????????????????????????????? | +----------------------------------------------------+ Best States ------------- Heat Dissipation 28 Energy Generation 10 Energy Capacity 250 Matter Stores 175 Matter Capacity 300 Sight Range 16 Terrain Scan Range 16 Terrain Scan Density 10 Evasion (%) 50 Recoil Reduction 2 Item Schematics ----------------- None Robot Schematics ------------------ None Fabricated ------------ Nothing Repaired ---------- Nothing Studied --------- None Alien Tech Used ----------------- None Achievements -------------- None Challenges ------------ None Game ------ Seed SpikedSixStorage Manual? 0 Play Time 00:07:27 Cumulative 5.1 hours Start 2025.12.26 @ 07:15:25 End 2025.12.26 @ 07:20:57 Sessions 1 Manual Loads 0 Difficulty Rogue Special Mode None Game No. 12 Rogue 12 Adventurer 0 Explorer 0 Win Type - Total 0 Types 0/0/0/0/0/0/0/0/0/0 Lore% 1 Gallery% 9 Achievement% 10 Wizard Run 0 Options --------- Layout 1 ASCII 0 Keyboard 0 Movement Arrows Keybinds 0 Fullscreen 1 Font 16/SmallcapsGlow Map View 55x38 Zoom Use 0% Tactical HUD 0 Map Filters NONE Filters NONE Steam 1 RUN: 795dd560-6ef3-41fb-904f-63ed5d24faeb